fUSD/lending_fUSD_20250225
["ID","MTS","AMOUNT","RATE_DAILY","PERIOD"]
[354473192,1740521473542,-3239.95,0.00049863,120]
[354473193,1740521473551,-500.0,0.00049863,120]
[354473194,1740521473560,-556.07,0.00049863,120]
[354473195,1740521473570,-1354.72,0.00049863,120]
[354473196,1740521473579,-500.0,0.00049863,120]
[354473197,1740521473667,-3389.32,0.00049863,120]
[354473198,1740521473677,-1060.73,0.00049863,120]
[354473199,1740521473686,-500.0,0.00049863,120]
[354473200,1740521473696,-500.0,0.00049863,120]
[354473201,1740521473705,-500.0,0.00049863,120]
[354473202,1740521473713,-500.0,0.00049863,120]
[354473203,1740521473722,-500.0,0.00049863,120]
[354473204,1740521473730,-789.46,0.00049863,120]
[354473205,1740521473741,-693.09,0.00049863,120]
[354473206,1740521473750,-2476.51,0.00049863,120]
[354473207,1740521473759,-500.0,0.00049863,120]
[354473208,1740521473768,-596.94,0.00049863,120]
[354473209,1740521473779,-3887.81,0.00049863,120]
[354473210,1740521473788,-500.0,0.00049863,120]
[354473211,1740521473798,-527.2734999,0.00049863,120]
[354473212,1740521473807,-1273.81,0.00049863,7]
[354473213,1740521473817,-2704.58,0.00049863,120]
[354473214,1740521473826,-1228.45,0.00049863,120]
[354473215,1740521473836,-500.0,0.00049863,120]
[354473216,1740521473845,-1628.42,0.00049863,120]
[354473217,1740521473855,-516.76,0.00049863,120]
[354473218,1740521473865,-871.49,0.00049863,120]
[354473219,1740521473877,-1076.65,0.00049863,120]
[354473220,1740521473887,-2469.3,0.00049863,120]
[354473221,1740521473897,-769.89,0.00049863,120]
[354473222,1740521473907,-500.0,0.00049863,120]
[354473223,1740521473917,-500.0,0.00049863,120]
[354473224,1740521473927,-500.0,0.00049863,120]
[354473225,1740521473937,-1863.83,0.00049863,120]
[354473226,1740521473947,-500.0,0.00049863,120]
[354473227,1740521473956,-2643.25,0.00049863,120]
[354473228,1740521473967,-1665.25,0.00049863,120]
[354473229,1740521473978,-346.26,0.00049863,120]
[354473230,1740521473989,-213.70523151,0.00049863,120]
[354473231,1740521473999,-500.0,0.00049863,120]
[354473232,1740521474009,-500.0,0.00049863,120]
[354473233,1740521474019,-1902.86,0.00049863,120]
[354473234,1740521474029,-630.02,0.00049863,120]
[354473235,1740521474039,-1773.84,0.00049863,120]
[354473236,1740521474049,-2134.02,0.00049863,120]
[354473237,1740521474059,-1710.54,0.00049863,120]
[354473238,1740521474068,-300.0,0.00049863,7]
[354473239,1740521474080,-500.0,0.00049863,120]
[354473240,1740521474090,-1753.6,0.00049863,120]
[354473241,1740521474100,-500.0,0.00049863,120]
[354473242,1740521474110,-500.0,0.00049863,120]
[354473243,1740521474120,-500.0,0.00049863,120]
[354473244,1740521474130,-500.0,0.00049863,120]
[354473245,1740521474140,-1327.12,0.00049863,120]
[354473246,1740521474149,-1328.05,0.00049863,120]
[354473247,1740521474159,-500.0,0.00049863,120]
[354473248,1740521474170,-500.0,0.00049863,120]
[354473249,1740521474181,-500.0,0.00049863,120]
[354473250,1740521474192,-500.0,0.00049863,120]
[354473251,1740521474203,-1351.95,0.00049863,120]
[354473252,1740521474214,-500.0,0.00049863,120]
[354473253,1740521474224,-1125.22,0.00049863,120]
[354473254,1740521474235,-988.01,0.00049863,120]
[354473255,1740521474246,-613.13,0.00049863,120]
[354473256,1740521474256,-500.0,0.00049863,120]
[354473257,1740521474268,-362.64,0.00049863,120]
[354473258,1740521474279,-500.0,0.00049863,120]
[354473259,1740521474289,-500.0,0.00049863,40]
[354473260,1740521474299,-500.0,0.00049863,120]
[354473261,1740521474310,-500.0,0.00049863,120]
[354473262,1740521474319,-664.39,0.00049863,120]
[354473263,1740521474329,-3085.97,0.00049863,120]
[354473264,1740521474339,-3142.53,0.00049863,120]
[354473265,1740521474349,-4048.91,0.00049863,120]
[354473266,1740521474359,-722.09,0.00049863,120]
[354473267,1740521474369,-500.0,0.00049863,120]
[354473268,1740521474381,-500.0,0.00049863,120]
[354473269,1740521474391,-608.2696686,0.00049863,120]
[354473270,1740521474401,-2609.05,0.00049863,120]
[354473271,1740521474411,-2230.87,0.00049863,120]
[354473272,1740521474421,-2025.39,0.00049863,120]
[354473273,1740521474430,-500.0,0.00049863,120]
[354473274,1740521474440,-1042.08,0.00049863,120]
[354473275,1740521474449,-1561.59,0.00049863,120]
[354473276,1740521474458,-500.0,0.00049863,120]
[354473277,1740521474468,-187.26,0.00049863,120]
[354473278,1740521474479,-500.0,0.00049863,120]
[354473279,1740521474490,-500.0,0.00049863,120]
[354473280,1740521474505,-500.0,0.00049863,120]
[354473281,1740521474527,-500.0,0.00049863,120]
[354473282,1740521474539,-932.42,0.00049863,120]
[354473283,1740521474549,-500.0,0.00049863,120]
[354473284,1740521474559,-717.07,0.00049863,120]
[354473285,1740521474569,-1602.54,0.00049863,120]
[354473286,1740521474580,-231.91079662,0.00049863,120]
[354473287,1740521474591,-3760.26,0.00049863,120]
[354473288,1740521474601,-500.0,0.00049863,120]
[354473289,1740521474611,-2631.73,0.00049863,120]
[354473290,1740521474620,-500.0,0.00049863,120]
[354473291,1740521474631,-1733.75,0.00049863,120]
[354473292,1740521474641,-500.0,0.00049863,120]
[354473293,1740521474651,-500.0,0.00049863,120]
[354473294,1740521474661,-3188.38,0.00049863,120]
[354473295,1740521474671,-3151.29,0.00049863,120]
[354473296,1740521474681,-577.86,0.00049863,120]
[354473297,1740521474691,-500.0,0.00049863,120]
[354473298,1740521474700,-1532.29,0.00049863,120]
[354473299,1740521474709,-500.0,0.00049863,120]
[354473300,1740521474719,-500.0,0.00049863,120]
[354473301,1740521474728,-2132.53,0.00049863,120]
[354473302,1740521474739,-1250.59,0.00049863,120]
[354473303,1740521474749,-500.0,0.00049863,120]
[354473304,1740521474759,-500.0,0.00049863,120]
[354473305,1740521474769,-2436.26,0.00049863,120]
[354473306,1740521474778,-500.0,0.00049863,120]
[354473307,1740521474789,-500.0,0.00049863,120]
[354473308,1740521474799,-500.0,0.00049863,120]
[354473309,1740521474809,-4632.35,0.00049863,120]
[354473310,1740521474818,-531.9,0.00049863,120]
[354473311,1740521474828,-500.0,0.00049863,120]
[354473312,1740521474838,-1964.72,0.00049863,120]
[354473313,1740521474847,-2065.94,0.00049863,120]
[354473314,1740521474857,-500.0,0.00049863,120]
[354473315,1740521474867,-668.94,0.00049863,120]
[354473316,1740521474877,-2173.51,0.00049863,120]
[354473317,1740521474888,-571.1,0.00049863,120]
[354473318,1740521474898,-1859.84,0.00049863,120]
[354473319,1740521474908,-3593.18,0.00049863,120]
[354473320,1740521474918,-794.3,0.00049863,120]
[354473321,1740521474928,-500.0,0.00049863,120]
[354473322,1740521474938,-500.0,0.00049863,120]
[354473323,1740521474948,-500.0,0.00049863,120]
[354473324,1740521474959,-1896.99,0.00049863,120]
[354473325,1740521474969,-500.0,0.00049863,120]
[354473326,1740521474979,-1672.4,0.00049863,120]
[354473327,1740521474989,-4255.11,0.00049863,120]
[354473328,1740521474999,-500.0,0.00049863,120]
[354473329,1740521475010,-2788.37,0.00049863,120]
[354473330,1740521475020,-770.88,0.00049863,120]
[354473331,1740521475029,-3722.65,0.00049863,120]
[354473332,1740521475039,-500.0,0.00049863,120]
[354473333,1740521475049,-1229.04,0.00049863,120]
[354473334,1740521475059,-500.0,0.00049863,120]
[354473335,1740521475068,-500.0,0.00049863,120]
[354473336,1740521475078,-775.43,0.00049863,120]
[354473337,1740521475089,-500.0,0.00049863,120]
[354473338,1740521475100,-1714.21,0.00049863,120]
[354473339,1740521475109,-3145.45,0.00049863,120]
[354473340,1740521475119,-2388.31,0.00049863,120]
[354473341,1740521475131,-500.0,0.00049863,120]
[354473342,1740521475141,-2960.86,0.00049863,120]
[354473343,1740521475151,-6713.73,0.00049863,120]
[354473344,1740521475160,-500.0,0.00049863,120]
[354473345,1740521475169,-2970.81,0.00049863,120]
[354473346,1740521475178,-500.0,0.00049863,120]
[354473347,1740521475188,-500.0,0.00049863,120]
[354473348,1740521475197,-651.56,0.00049863,120]
[354473349,1740521475207,-500.0,0.00049863,120]
[354473350,1740521475216,-383.17183376,0.00049863,120]
[354473351,1740521475225,-3610.13,0.00049863,120]
[354473352,1740521475235,-500.0,0.00049863,120]
[354473353,1740521475246,-500.0,0.00049863,120]
[354473354,1740521475256,-545.87,0.00049863,120]
[354473355,1740521475266,-1048.89,0.00049863,120]
[354473356,1740521475275,-987.91,0.00049863,120]
[354473357,1740521475284,-862.84,0.00049863,120]
[354473358,1740521475294,-500.0,0.00049863,120]
[354473359,1740521475303,-1270.57,0.00049863,120]
[354473360,1740521475313,-4557.87,0.00049863,120]
[354473361,1740521475322,-850.2,0.00049863,120]
[354473362,1740521475331,-3164.64,0.00049863,120]
[354473363,1740521475341,-500.0,0.00049863,120]
[354473364,1740521475352,-2517.26,0.00049863,120]
[354473365,1740521475363,-526.77,0.00049863,120]
[354473366,1740521475372,-3938.73,0.00049863,120]
[354473367,1740521475382,-1357.9,0.00049863,120]
[354473368,1740521475392,-2090.64,0.00049863,120]
[354473369,1740521475402,-353.25307065,0.00049863,120]
[354473370,1740521476348,-500.0,0.00049315,120]
[354473371,1740521476360,-500.0,0.00049315,120]
[354473372,1740521476371,-500.0,0.00049315,120]
[354473373,1740521476382,-1253.89,0.00049589,120]
[354473374,1740521476393,-179.96,0.00049589,120]
[354473375,1740521476403,-146.74692935,0.00049863,120]
[354473376,1740521476415,-2067.17749803,0.00049863,120]
[354473377,1740521476427,-900.76250197,0.00049863,120]
[354473378,1740521476436,-1368.97,0.00049863,120]
[354473379,1740521476446,-600.26784462,0.00049863,120]
[354473380,1740521476458,-522.01898272,0.00049863,120]
[354473381,1740521476470,-949.65,0.00049863,120]
[354473382,1740521476482,-233.44317266,0.00049863,120]
[354473383,1740521476493,-322.82957682,0.00049863,120]
[354473384,1740521476505,-564.54042318,0.00049863,120]
[354473385,1740521476514,-500.0,0.00049863,120]
[354473386,1740521476524,-500.0,0.00049863,120]
[354473387,1740521476534,-4901.79,0.00049863,120]
[354473388,1740521476543,-6834.47,0.00049863,120]
[354473389,1740521476553,-2754.92,0.00049863,120]
[354473390,1740521476563,-500.0,0.00049863,120]
[354473391,1740521476573,-3500.72,0.00049863,120]
[354473392,1740521476583,-500.0,0.00049863,120]
[354473393,1740521476593,-500.0,0.00049863,120]
[354473394,1740521476603,-904.85,0.00049863,120]
[354473395,1740521476613,-2019.74,0.00049863,120]
[354473396,1740521476622,-5055.26,0.00049863,120]
[354473397,1740521476632,-500.0,0.00049863,120]
[354473398,1740521476642,-922.1,0.00049863,120]
[354473399,1740521476651,-500.0,0.00049863,120]
[354473400,1740521476661,-764.35,0.00049863,120]
[354473401,1740521476671,-4227.61,0.00049863,120]
[354473402,1740521476681,-581.2345783,0.00049863,120]
[354473403,1740521476691,-500.0,0.00049863,120]
[354473404,1740521476702,-2719.89,0.00049863,120]
[354473405,1740521476712,-1128.07,0.00049863,120]
[354473406,1740521476723,-1105.37,0.00049863,120]
[354473407,1740521476734,-605.09,0.00049863,120]
[354473408,1740521476744,-4826.43,0.00049863,120]
[354473409,1740521476754,-500.0,0.00049863,120]
[354473410,1740521476763,-500.0,0.00049863,120]
[354473411,1740521476774,-2878.24,0.00049863,120]
[354473412,1740521476784,-500.0,0.00049863,120]
[354473413,1740521476793,-1028.08,0.00049863,120]
[354473414,1740521476803,-500.0,0.00049863,120]
[354473415,1740521476813,-5312.65,0.00049863,120]
[354473416,1740521476823,-2141.92,0.00049863,120]
[354473417,1740521476833,-500.0,0.00049863,120]
[354473418,1740521476843,-500.0,0.00049863,120]
[354473419,1740521476853,-500.0,0.00049863,120]
[354473420,1740521476863,-500.0,0.00049863,120]
[354473421,1740521476873,-695.7,0.00049863,120]
[354473422,1740521476883,-500.0,0.00049863,120]
[354473423,1740521476894,-500.0,0.00049863,120]
[354473424,1740521476904,-1409.71,0.00049863,120]
[354473425,1740521476915,-500.0,0.00049863,120]
[354473426,1740521476924,-581.64,0.00049863,120]
[354473427,1740521476935,-913.18,0.00049863,120]
[354473428,1740521476946,-500.0,0.00049863,120]
[354473429,1740521476956,-1367.18,0.00049863,120]
[354473430,1740521476966,-4769.23157461,0.00049863,100]
[354473431,1740521476979,-276.23842539,0.00049863,100]
[354473432,1740521476991,-500.0,0.00049863,120]
[354473433,1740521477001,-175.59734855,0.00049863,120]
[354473434,1740521477013,-324.40265145,0.00049863,120]
[354473435,1740521477022,-107.48234855,0.00049863,120]
[354473436,1740521477035,-302.0,0.00049863,120]
[354473437,1740521477047,-299.03765145,0.00049863,120]
[354473438,1740521477057,-2669.79,0.00049863,120]
[354473439,1740521477068,-1340.61,0.00049863,120]
[354473440,1740521477078,-5892.84,0.00049863,120]
[354473441,1740521477088,-500.0,0.00049863,120]
[354473442,1740521477098,-2674.07,0.00049863,120]
[354473443,1740521477108,-1155.27,0.00049863,120]
[354473444,1740521477118,-500.0,0.00049863,120]
[354473445,1740521477128,-3361.25755713,0.00049863,120]
[354473446,1740521477141,-228.74244287,0.00049863,120]
[354473447,1740521477151,-97.21417131,0.00049863,120]
[354473448,1740521477163,-642.99582869,0.00049863,120]
[354473449,1740521477173,-569.48741098,0.00049863,120]
[354473450,1740521477185,-53.74533266,0.00049863,120]
[354473451,1740521477194,-500.0,0.00049863,120]
[354473452,1740521477204,-159.93346734,0.00049863,120]
[354473461,1740522308718,365432.0016062,0.0001,2]
[354473462,1740522329759,1989.89327338,0.00011,2]
[354473463,1740522479261,156617.64358151,0.0001,2]
[354473471,1740522523918,460.20870484,0.00010136,2]
[354473482,1740522632118,-1532.06271545,0.000168,2]
[354473483,1740522632129,-1000.0,0.00018632,3]
[354473484,1740522632140,-1188.72225292,0.00024021,2]
[354473485,1740522632154,-550.0,0.00024021,2]
[354473486,1740522632412,-720.85501342,0.00024021,2]
[354473487,1740522632424,-425.81865342,0.00024021,2]
[354473488,1740522632434,-568.16213336,0.00024021,2]
[354473489,1740522632443,-161.11,0.00026849,2]
[354473490,1740522632453,-136.00921322,0.00033999,2]
[354473997,1740522637976,-263.99078678,0.00033999,2]
[354473999,1740522637987,-677.32,0.00034,120]
[354474001,1740522637997,-183.37361123,0.00034,30]
[354474003,1740522638007,-225.57205027,0.00035,120]
[354474005,1740522638017,-560.0,0.00036492,2]
[354474007,1740522638026,-107.84993872,0.00039168,5]
[354474009,1740522638038,-154.15006128,0.00039168,5]
[354474010,1740522638047,-161.11,0.00040616,2]
[354474012,1740522638057,-203.40592156,0.000439,9]
[354474014,1740522638066,-215.42401716,0.00043987,31]
[354474020,1740522638130,-7514.45536676,0.00043987,31]
[354474022,1740522638140,-652.97513996,0.0004489,2]
[354474024,1740522638150,-226.76777833,0.00044899,17]
[354474026,1740522638159,-319.78,0.00044927,2]
[354474028,1740522638169,-375.09,0.00044953,2]
[354474029,1740522638178,-44368.53171495,0.0004499,4]
[354474201,1740522640047,-1600.65,0.0004499,4]
[354474204,1740522640059,-472.68,0.0004499,4]
[354474206,1740522640069,-301.92197159,0.0004499,4]
[354474208,1740522640080,-1196.73605101,0.0004499,4]
[354474210,1740522640091,-389.84869795,0.0004499,4]
[354474219,1740522640175,-2034.52399846,0.0004499,4]
[354474221,1740522640186,-612.38561351,0.0004499,4]
[354474234,1740522640323,-54957.72805995,0.0004499,4]
[354474237,1740522640335,-741.33255859,0.0004499,4]
[354474238,1740522640346,-2793.02318066,0.0004499,4]
[354474240,1740522640357,-2550.0,0.0004499,4]
[354474242,1740522640369,-19063.35960329,0.0004499,4]
[354474244,1740522640380,-435.38038272,0.0004499,4]
[354474246,1740522640391,-380.43,0.0004499,4]
[354474261,1740522640533,-3562.44,0.0004499,4]
[354474265,1740522640572,-2976.20822404,0.0004499,4]
[354474267,1740522640583,-3583.06796825,0.0004499,4]
[354474273,1740522640650,-613.10863204,0.0004499,4]
[354474274,1740522640661,-15891.35338976,0.0004499,4]
[354474275,1740522640671,-388.345,0.0004499,4]
[354474276,1740522640682,-285.84,0.0004499,4]
[354474277,1740522640729,-764.09423896,0.0004499,4]
[354474522,1740522643074,-8946.91406624,0.0004499,4]
[354474547,1740522643241,-29319.20629642,0.0004499,4]
[354474780,1740522645476,-22777.79725648,0.0004499,4]
[354474876,1740522646386,-365.04812,0.0004499,4]
[354475730,1740523832483,-250.0,0.00021,2]
[354475731,1740523832492,-150.0,0.00021657,2]
[354475732,1740523832503,-150.0,0.00021657,2]
[354475733,1740523832519,-587.52026804,0.000229,2]
[354475734,1740523832540,-2422.55960821,0.00022999,2]
[354475735,1740523832556,-1093.0,0.00022999,2]
[354475736,1740523832566,-300.0,0.00022999,2]
[354475737,1740523832578,-300.0,0.00023,2]
[354475738,1740523832587,-54784.29146203,0.00023,2]
[354475739,1740523832598,-200.0,0.00024027,30]
[354475740,1740523832610,-156.0,0.00024967,2]
[354475741,1740523832621,-350.0,0.00025,2]
[354475742,1740523832635,-165.12,0.00026849,2]
[354475743,1740523832646,-250.0,0.00027748,2]
[354475744,1740523832657,-150.0,0.00034548,10]
[354475745,1740523832667,-3280.0,0.000372,3]
[354475746,1740523832677,-99790.0,0.0004,120]
[354475747,1740523832687,-2132.62822128,0.00040905,15]
[354475748,1740523832696,-1000.0,0.00041005,3]
[354475749,1740523832706,-2132.6282212,0.00041615,15]
[354475750,1740523832715,-411.28,0.00041886,2]
[354475751,1740523832725,-4665.06,0.00042112,2]
[354475752,1740523832734,-2132.6282212,0.00042325,15]
[354475753,1740523832744,-2751.0,0.00042609,120]
[354475754,1740523832754,-1000.0,0.0004267,2]
[354475755,1740523832763,-2132.6282212,0.00043036,15]
[354475756,1740523832773,-153.64,0.00043302,2]
[354475757,1740523832783,-330.18,0.00043397,120]
[354475758,1740523832792,-156.5,0.00043679,2]
[354475759,1740523832802,-2132.6282212,0.00043746,15]
[354475760,1740523832813,-250.0,0.00043864,2]
[354475761,1740523832823,-364.11,0.00044073,2]
[354475762,1740523832832,-411.28,0.0004415,2]
[354475763,1740523832842,-11265.40556332,0.00044298,30]
[354475764,1740523832851,-2132.6282212,0.00044456,15]
[354475765,1740523832861,-334.21349985,0.0004455,2]
[354475767,1740523832871,-500.0,0.000446,16]
[354475769,1740523832880,-1100.0,0.000447,16]
[354475771,1740523832889,-432.55648003,0.00044752,2]
[354475773,1740523832898,-1600.0,0.000448,16]
[354475775,1740523832908,-174.05445656,0.00044879,22]
[354475777,1740523832916,-322.14309284,0.00044879,2]
[354475779,1740523832925,-165.83,0.00044884,2]
[354475781,1740523832934,-174.05445656,0.0004489,22]
[354475783,1740523832943,-226.76777833,0.0004489,17]
[354475785,1740523832953,-551.6426,0.0004489,120]
[354475787,1740523832962,-175.91247541,0.00044899,17]
[354475789,1740523832971,-2000.0,0.00044899,120]
[354475791,1740523832980,-2200.0,0.000449,16]
[354475793,1740523832989,-4270.78496846,0.000449,50]
[354475794,1740523832999,-174.05445656,0.000449,22]
[354475795,1740523833008,-1192.012,0.00044965,72]
[354475796,1740523833018,-326.31478714,0.00044973,10]
[354475797,1740523833027,-158.53565033,0.00044973,10]
[354475798,1740523833036,-160.66750429,0.00044973,10]
[354475799,1740523833046,-152.60985347,0.00044973,10]
[354475800,1740523833055,-153.99015491,0.00044973,10]
[354475801,1740523833064,-161.66865636,0.00044973,10]
[354475802,1740523833074,-500.0,0.00044973,2]
[354475803,1740523833086,-162.7150881,0.00044973,10]
[354475804,1740523833096,-152.49419982,0.00044973,10]
[354475805,1740523833105,-197.84748227,0.00044973,10]
[354475806,1740523833114,-307.59922919,0.00044973,10]
[354475807,1740523833123,-180.17134134,0.00044973,10]
[354475808,1740523833134,-618.49213537,0.00044973,10]
[354475809,1740523833143,-151.65203892,0.00044973,10]
[354475810,1740523833152,-152.84466352,0.00044973,10]
[354475811,1740523833164,-500.0,0.00044979,120]
[354475812,1740523833174,-353.52737315,0.00044979,120]
[354475813,1740523833183,-398.58162038,0.00044979,71]
[354475814,1740523833193,-216021.96652,0.00044979,4]
[354475815,1740523833202,-77674.3108999,0.00044979,4]
[354475816,1740523833212,-64806.5899561,0.0004498,4]
[354475817,1740523833221,-119498.939846,0.0004498,4]
[354475818,1740523833230,-5974.9469923,0.0004498,4]
[354475819,1740523833239,-5851.78601727,0.00044989,120]
[354475820,1740523833248,-200.0,0.0004499,7]
[354475821,1740523833258,-1260.03675,0.0004499,53]
[354475822,1740523833268,-35849.6819538,0.0004499,4]
[354475823,1740523833278,-200.0,0.0004499,7]
[354475824,1740523833288,-500.0,0.00044999,120]
[354475825,1740523833298,-177.29192628,0.00044999,120]
[354475826,1740523833308,-500.0,0.00044999,120]
[354475827,1740523833318,-500.0,0.00044999,120]
[354475828,1740523833329,-500.0,0.00044999,120]
[354475829,1740523833338,-625.0,0.00044999,120]
[354475830,1740523833347,-500.0,0.00044999,120]
[354475831,1740523833357,-500.0,0.00044999,120]
[354475832,1740523833367,-500.0,0.00044999,120]
[354475833,1740523833377,-500.0,0.00044999,120]
[354475834,1740523833386,-500.0,0.00044999,120]
[354475835,1740523833396,-275.97784119,0.00044999,120]
[354475836,1740523833405,-500.0,0.00044999,120]
[354475837,1740523833415,-167373.0114573,0.00045,90]
[354475841,1740523838343,-2427.46349289,0.00044979,50]
[354475842,1740523838427,-7455.74323302,0.00044979,50]
[354475980,1740523840265,-523.29960699,0.00044979,50]
[354475981,1740523840277,-4476.70039301,0.00044979,50]
[354475982,1740523840423,-1541.35603539,0.00044979,50]
[354475983,1740523840469,-485882.0540849,0.00044979,50]
[354475984,1740523840479,-500.0,0.00044999,120]
[354475985,1740523840489,-500.0,0.00044999,120]
[354475986,1740523840499,-500.0,0.00044999,120]
[354475987,1740523840508,-500.0,0.00044999,120]
[354475988,1740523840518,-500.0,0.00044999,120]
[354475989,1740523840527,-500.0,0.00044999,120]
[354475990,1740523840537,-500.0,0.00044999,120]
[354475991,1740523840547,-160.69506385,0.00044999,120]
[354475992,1740523840556,-500.0,0.00044999,120]
[354475993,1740523840566,-1447947.66403125,0.00045,90]
[354475994,1740523840576,-300.0,0.00045,120]
[354475995,1740523840585,-2132.6282212,0.00045166,15]
[354475996,1740523840595,-156.5,0.00045317,2]
[354475997,1740523840603,-1000.0,0.00045336,2]
[354475998,1740523840613,-1000.0,0.00045336,2]
[354475999,1740523840622,-1000.0,0.00045336,2]
[354476000,1740523840632,-1000.0,0.00045336,2]
[354476001,1740523840641,-1000.0,0.00045336,2]
[354476002,1740523840650,-1000.0,0.00045336,2]
[354476003,1740523840659,-1000.0,0.00045336,2]
[354476004,1740523840668,-1000.0,0.00045336,2]
[354476005,1740523840678,-1000.0,0.00045336,2]
[354476006,1740523840687,-976.0,0.00045336,2]
[354476007,1740523840696,-690.84941985,0.00045433,6]
[354476009,1740523840706,-200.0,0.0004544,7]
[354476010,1740523840715,-2132.6282212,0.00045877,15]
[354476012,1740523840726,-200.0,0.00045894,7]
[354476013,1740523840735,-15003.79275423,0.00046,120]
[354476014,1740523840744,-175.9124754,0.00046252,23]
[354476015,1740523840753,-2027.0,0.00046337,2]
[354476016,1740523840763,-1275.0,0.00046337,2]
[354476017,1740523840772,-150.0,0.00046337,2]
[354476018,1740523840781,-1664.0,0.00046337,2]
[354476019,1740523840791,-569.0,0.00046337,2]
[354476020,1740523840800,-639.0,0.00046337,2]
[354476021,1740523840810,-784.0,0.00046337,2]
[354476022,1740523840819,-907.0,0.00046337,2]
[354476023,1740523840830,-554.891,0.00046337,2]
[354476024,1740523840840,-1424.0,0.00046337,2]
[354476025,1740523840851,-3919.0,0.00046337,2]
[354476026,1740523840860,-150.0,0.00046337,2]
[354476027,1740523840869,-204.026,0.00046337,2]
[354476028,1740523840879,-1009.0,0.00046337,2]
[354476029,1740523840888,-200.0,0.00046353,7]
[354476030,1740523840898,-152.0,0.00046401,3]
[354476031,1740523840907,-411.28,0.00046414,2]
[354476032,1740523840917,-500.0,0.00046575,120]
[354476033,1740523840927,-3714.35,0.00046575,120]
[354476034,1740523840936,-1142.9,0.00046575,120]
[354476035,1740523840946,-205.57529942,0.00046575,120]
[354476036,1740523840956,-500.0,0.00046575,120]
[354476037,1740523840965,-2481.42,0.00046575,120]
[354476038,1740523840974,-1145.98,0.00046575,120]
[354476039,1740523840984,-500.0,0.00046575,120]
[354476040,1740523840993,-500.0,0.00046575,120]
[354476041,1740523841002,-500.0,0.00046575,120]
[354476042,1740523841011,-500.0,0.00046575,120]
[354476043,1740523841021,-500.0,0.00046575,120]
[354476044,1740523841030,-1662.46,0.00046575,120]
[354476045,1740523841039,-500.0,0.00046575,120]
[354476046,1740523841048,-500.0,0.00046575,120]
[354476047,1740523841058,-500.0,0.00046575,120]
[354476048,1740523841067,-500.0,0.00046575,120]
[354476049,1740523841077,-520.55,0.00046575,120]
[354476050,1740523841090,-579.97788064,0.00046575,120]
[354476051,1740523841099,-500.0,0.00046575,120]
[354476052,1740523841108,-500.0,0.00046575,120]
[354476053,1740523841118,-515.56,0.00046575,120]
[354476054,1740523841128,-597.34,0.00046575,120]
[354476055,1740523841138,-1737.04,0.00046575,120]
[354476056,1740523841147,-1646.27,0.00046575,120]
[354476057,1740523841157,-8115.69,0.00046575,120]
[354476058,1740523841166,-500.0,0.00046575,120]
[354476059,1740523841176,-500.0,0.00046575,120]
[354476060,1740523841185,-500.0,0.00046575,120]
[354476061,1740523841195,-500.0,0.00046575,120]
[354476062,1740523841204,-500.0,0.00046575,120]
[354476063,1740523841213,-3192.01,0.00046575,120]
[354476064,1740523841223,-500.0,0.00046575,120]
[354476065,1740523841232,-500.0,0.00046575,120]
[354476066,1740523841242,-500.0,0.00046575,120]
[354476067,1740523841252,-500.0,0.00046575,120]
[354476068,1740523841262,-500.0,0.00046575,120]
[354476069,1740523841271,-1888.38,0.00046575,120]